[Event "Early-Titled-Tuesday-Blitz-May-07-2024"]
[Site "Chess.com"]
[Date "2024.05.07"]
[Round "1"]
[White "Grossboss19"]
[Black "kidagent"]
[Result "0-1"]
[WhiteElo "2633"]
[BlackElo "2368"]
[TimeControl "180+1"]
[EndTime "8:05:28 PDT"]
[Termination "kidagent won by resignation"]

1. c4 {[%clk 0:02:54.6]} 1... c6 {[%clk 0:02:58.6]} 2. b3 {[%clk 0:02:54]} 2...
d5 {[%clk 0:02:58.1]} 3. d4 {[%clk 0:02:54.2]} 3... Nf6 {[%clk 0:02:54.6]} 4.
Bb2 {[%clk 0:02:53.8]} 4... Bf5 {[%clk 0:02:53]} 5. Nd2 {[%clk 0:02:54.1]} 5...
e6 {[%clk 0:02:52.7]} 6. e3 {[%clk 0:02:54.5]} 6... Nbd7 {[%clk 0:02:52.1]} 7.
Ngf3 {[%clk 0:02:54.7]} 7... Bd6 {[%clk 0:02:48.1]} 8. Be2 {[%clk 0:02:55]} 8...
O-O {[%clk 0:02:47.5]} 9. O-O {[%clk 0:02:55.6]} 9... Ne4 {[%clk 0:02:38.7]} 10.
Nxe4 {[%clk 0:02:55.1]} 10... Bxe4 {[%clk 0:02:38.7]} 11. Nd2 {[%clk 0:02:51.9]}
11... Bg6 {[%clk 0:02:38]} 12. f4 {[%clk 0:02:52.4]} 12... Qe7 {[%clk
0:02:29.6]} 13. Nf3 {[%clk 0:02:48.2]} 13... f6 {[%clk 0:02:28.3]} 14. Qd2
{[%clk 0:02:43.1]} 14... Rae8 {[%clk 0:02:27]} 15. Rae1 {[%clk 0:02:41.9]} 15...
Bb4 {[%clk 0:02:24.9]} 16. Bc3 {[%clk 0:02:41.8]} 16... Bxc3 {[%clk 0:02:25.1]}
17. Qxc3 {[%clk 0:02:42.7]} 17... e5 {[%clk 0:02:19.4]} 18. cxd5 {[%clk
0:02:42.2]} 18... cxd5 {[%clk 0:02:18.9]} 19. Bb5 {[%clk 0:02:36.8]} 19... e4
{[%clk 0:02:13.8]} 20. Nd2 {[%clk 0:02:31.1]} 20... Rc8 {[%clk 0:02:12.9]} 21.
Qb2 {[%clk 0:02:29.6]} 21... Rfd8 {[%clk 0:02:03]} 22. Bxd7 {[%clk 0:02:26.7]}
22... Qxd7 {[%clk 0:02:00.2]} 23. Rc1 {[%clk 0:02:27.6]} 23... Be8 {[%clk
0:01:59]} 24. Rxc8 {[%clk 0:02:26.5]} 24... Rxc8 {[%clk 0:01:58.4]} 25. Rc1
{[%clk 0:02:27.1]} 25... Kf7 {[%clk 0:01:52.4]} 26. Kf2 {[%clk 0:02:25]} 26...
Rc6 {[%clk 0:01:45.5]} 27. Rc3 {[%clk 0:02:20.7]} 27... Qc8 {[%clk 0:01:44.5]}
28. Nb1 {[%clk 0:02:21.2]} 28... Bd7 {[%clk 0:01:40.2]} 29. Qc1 {[%clk
0:02:17.9]} 29... b5 {[%clk 0:01:36.6]} 30. Rc5 {[%clk 0:02:14.7]} 30... Rxc5
{[%clk 0:01:35]} 31. Qxc5 {[%clk 0:02:15.6]} 31... Qxc5 {[%clk 0:01:34.4]} 32.
dxc5 {[%clk 0:02:16.5]} 32... b4 {[%clk 0:01:33.1]} 33. a3 {[%clk 0:02:14.5]}
33... a5 {[%clk 0:01:32.8]} 34. axb4 {[%clk 0:02:14.2]} 34... axb4 {[%clk
0:01:33.7]} 35. Nd2 {[%clk 0:02:11.3]} 35... Bb5 {[%clk 0:01:30.3]} 36. g4
{[%clk 0:02:08.1]} 36... Ke7 {[%clk 0:01:29.6]} 37. Kg3 {[%clk 0:02:04.6]} 37...
Kd7 {[%clk 0:01:29.6]} 38. f5 {[%clk 0:02:04.7]} 38... Kc6 {[%clk 0:01:29.2]}
39. Kf4 {[%clk 0:02:05.2]} 39... Kxc5 {[%clk 0:01:29.5]} 40. h4 {[%clk
0:02:05.2]} 40... Bd3 {[%clk 0:01:17.1]} 41. g5 {[%clk 0:02:04.8]} 41... Kd6
{[%clk 0:01:16]} 42. h5 {[%clk 0:01:56.5]} 42... fxg5+ {[%clk 0:01:11.6]} 43.
Kxg5 {[%clk 0:01:56.6]} 43... Ke5 {[%clk 0:01:11.7]} 44. f6 {[%clk 0:01:49.4]}
44... gxf6+ {[%clk 0:01:09.1]} 45. Kh6 {[%clk 0:01:50.3]} 45... Be2 {[%clk
0:01:07.5]} 46. Kxh7 {[%clk 0:01:47.7]} 46... Bxh5 {[%clk 0:01:06.3]} 47. Nf1
{[%clk 0:01:47.8]} 47... Bd1 {[%clk 0:01:05.4]} 48. Nd2 {[%clk 0:01:45.3]} 48...
f5 {[%clk 0:01:01.4]} 49. Kg6 {[%clk 0:01:46.2]} 49... f4 {[%clk 0:01:01.7]} 50.
exf4+ {[%clk 0:01:45.3]} 50... Kxf4 {[%clk 0:01:02]} 51. Kf6 {[%clk 0:01:44]}
51... e3 {[%clk 0:01:01.7]} 52. Nb1 {[%clk 0:01:44.2]} 52... e2 {[%clk 0:01:01]}
53. Na3 {[%clk 0:01:43]} 53... bxa3 {[%clk 0:00:59.9]} 0-1

[Event "Early-Titled-Tuesday-Blitz-May-07-2024"]
[Site "Chess.com"]
[Date "2024.05.07"]
[Round "1"]
[White "Abund"]
[Black "WPWPWP-2015"]
[Result "1-0"]
[WhiteElo "2761"]
[BlackElo "2435"]
[TimeControl "180+1"]
[EndTime "8:05:30 PDT"]
[Termination "Abund won by resignation"]

1. e4 {[%clk 0:03:00.9]} 1... e5 {[%clk 0:02:58.3]} 2. Nf3 {[%clk 0:03:00.5]}
2... Nc6 {[%clk 0:02:55.2]} 3. Bb5 {[%clk 0:02:57.1]} 3... Nf6 {[%clk
0:02:55.3]} 4. d3 {[%clk 0:02:57]} 4... Bc5 {[%clk 0:02:54.1]} 5. Bxc6 {[%clk
0:02:56.8]} 5... dxc6 {[%clk 0:02:52.7]} 6. Nbd2 {[%clk 0:02:57.5]} 6... Nd7
{[%clk 0:02:51.9]} 7. Nc4 {[%clk 0:02:52.5]} 7... Qe7 {[%clk 0:02:49.9]} 8. O-O
{[%clk 0:02:51.9]} 8... O-O {[%clk 0:02:49.5]} 9. Kh1 {[%clk 0:02:51.7]} 9...
Re8 {[%clk 0:02:47.1]} 10. Be3 {[%clk 0:02:47.9]} 10... f6 {[%clk 0:02:42.1]}
11. Nh4 {[%clk 0:02:45.4]} 11... g6 {[%clk 0:02:32.5]} 12. g3 {[%clk 0:02:19.2]}
12... Nf8 {[%clk 0:02:31]} 13. Bxc5 {[%clk 0:02:12.7]} 13... Qxc5 {[%clk
0:02:30]} 14. Qe2 {[%clk 0:02:05.3]} 14... b5 {[%clk 0:02:18.2]} 15. Ne3 {[%clk
0:02:05.5]} 15... Qd6 {[%clk 0:02:12]} 16. f4 {[%clk 0:02:03.8]} 16... exf4
{[%clk 0:02:06.8]} 17. Rxf4 {[%clk 0:02:01]} 17... Bb7 {[%clk 0:01:53.9]} 18.
Raf1 {[%clk 0:01:57.7]} 18... Re6 {[%clk 0:01:53.2]} 19. Ng4 {[%clk 0:01:50.5]}
19... f5 {[%clk 0:01:43.9]} 20. Nh6+ {[%clk 0:01:49.7]} 20... Kg7 {[%clk
0:01:43.4]} 21. N4xf5+ {[%clk 0:01:45.4]} 21... gxf5 {[%clk 0:01:37.5]} 22.
Nxf5+ {[%clk 0:01:46.3]} 22... Kg8 {[%clk 0:01:37.7]} 23. Nxd6 {[%clk
0:01:39.9]} 23... cxd6 {[%clk 0:01:23.2]} 24. Rf7 {[%clk 0:01:30.4]} 24... Rb8
{[%clk 0:01:22.9]} 25. Qf3 {[%clk 0:01:12.7]} 25... Ng6 {[%clk 0:01:10.4]} 26.
Qf5 {[%clk 0:00:59.7]} 26... Bc8 {[%clk 0:00:53.2]} 27. Rf8+ {[%clk 0:00:59.2]}
27... Kg7 {[%clk 0:00:53.3]} 28. Rxc8 {[%clk 0:00:58.7]} 1-0

[Event "Early-Titled-Tuesday-Blitz-May-07-2024"]
[Site "Chess.com"]
[Date "2024.05.07"]
[Round "1"]
[White "banjadvorovi"]
[Black "Kunalm64"]
[Result "0-1"]
[WhiteElo "2316"]
[BlackElo "2640"]
[TimeControl "180+1"]
[EndTime "8:05:30 PDT"]
[Termination "Kunalm64 won by resignation"]

1. Nf3 {[%clk 0:03:00.4]} 1... Nf6 {[%clk 0:02:58.2]} 2. c4 {[%clk 0:02:57.9]}
2... e6 {[%clk 0:02:56]} 3. Nc3 {[%clk 0:02:57.8]} 3... d5 {[%clk 0:02:53.8]} 4.
cxd5 {[%clk 0:02:57.9]} 4... exd5 {[%clk 0:02:53.3]} 5. d4 {[%clk 0:02:58.2]}
5... c6 {[%clk 0:02:51.1]} 6. Bf4 {[%clk 0:02:58.4]} 6... Bd6 {[%clk 0:02:49.6]}
7. Bxd6 {[%clk 0:02:57.4]} 7... Qxd6 {[%clk 0:02:50.1]} 8. e3 {[%clk 0:02:58.1]}
8... O-O {[%clk 0:02:49.5]} 9. h3 {[%clk 0:02:58.1]} 9... Bf5 {[%clk 0:02:47.7]}
10. Bd3 {[%clk 0:02:58.5]} 10... Bxd3 {[%clk 0:02:47.2]} 11. Qxd3 {[%clk
0:02:59.4]} 11... Nbd7 {[%clk 0:02:47.3]} 12. O-O {[%clk 0:02:59.5]} 12... Rfe8
{[%clk 0:02:47.4]} 13. Nd2 {[%clk 0:02:58.5]} 13... b5 {[%clk 0:02:42.3]} 14. a3
{[%clk 0:02:53.6]} 14... a5 {[%clk 0:02:40.7]} 15. Rac1 {[%clk 0:02:50.3]} 15...
a4 {[%clk 0:02:39.6]} 16. Na2 {[%clk 0:02:48]} 16... Nb6 {[%clk 0:02:38.9]} 17.
Nb4 {[%clk 0:02:46.3]} 17... Nc4 {[%clk 0:02:38.5]} 18. Nxc4 {[%clk 0:02:46.7]}
18... bxc4 {[%clk 0:02:36.4]} 19. Qf5 {[%clk 0:02:45.5]} 19... g6 {[%clk
0:02:30.2]} 20. Qf3 {[%clk 0:02:40.7]} 20... Ne4 {[%clk 0:02:29.9]} 21. Rfd1
{[%clk 0:02:39.8]} 21... Re6 {[%clk 0:02:29.5]} 22. Qe2 {[%clk 0:02:35.8]} 22...
h5 {[%clk 0:02:26]} 23. f3 {[%clk 0:02:28.3]} 23... Ng3 {[%clk 0:02:24.7]} 24.
Qf2 {[%clk 0:02:28.4]} 24... h4 {[%clk 0:02:23.9]} 25. Re1 {[%clk 0:02:22.5]}
25... Rae8 {[%clk 0:02:22.6]} 26. Na6 {[%clk 0:02:15.9]} 26... Nf5 {[%clk
0:02:19.1]} 27. e4 {[%clk 0:02:10.8]} 27... dxe4 {[%clk 0:02:13.9]} 28. fxe4
{[%clk 0:02:10.9]} 28... Rxe4 {[%clk 0:02:10.4]} 29. Rxe4 {[%clk 0:02:08.8]}
29... Rxe4 {[%clk 0:02:10.8]} 30. Rxc4 {[%clk 0:02:08.8]} 30... Rf4 {[%clk
0:01:48.8]} 31. Qd2 {[%clk 0:01:43.5]} 31... Ng3 {[%clk 0:01:46.5]} 32. Rc1
{[%clk 0:01:41.4]} 32... Rxd4 {[%clk 0:01:34.4]} 33. Qc2 {[%clk 0:01:35.3]}
33... Rd2 {[%clk 0:01:19.8]} 34. Qc4 {[%clk 0:01:11.9]} 34... Ne2+ {[%clk
0:00:54.5]} 0-1

[Event "Early-Titled-Tuesday-Blitz-May-07-2024"]
[Site "Chess.com"]
[Date "2024.05.07"]
[Round "1"]
[White "Ziyamammadov"]
[Black "RobRam"]
[Result "0-1"]
[WhiteElo "1977"]
[BlackElo "2553"]
[TimeControl "180+1"]
[EndTime "8:05:31 PDT"]
[Termination "RobRam won by resignation"]

1. e4 {[%clk 0:02:54.1]} 1... d6 {[%clk 0:02:58.1]} 2. d4 {[%clk 0:02:53.3]}
2... g6 {[%clk 0:02:54.8]} 3. Nc3 {[%clk 0:02:51.3]} 3... Bg7 {[%clk 0:02:53.1]}
4. Bc4 {[%clk 0:02:50.1]} 4... Nf6 {[%clk 0:02:47.8]} 5. f3 {[%clk 0:02:48]}
5... c6 {[%clk 0:02:44.7]} 6. Be3 {[%clk 0:02:46]} 6... O-O {[%clk 0:02:38.4]}
7. Qd2 {[%clk 0:02:41.7]} 7... b5 {[%clk 0:02:38.1]} 8. Bb3 {[%clk 0:02:40.3]}
8... a5 {[%clk 0:02:37.7]} 9. a3 {[%clk 0:02:38.1]} 9... Nbd7 {[%clk 0:02:30.3]}
10. g4 {[%clk 0:02:28.4]} 10... Ba6 {[%clk 0:02:24.9]} 11. g5 {[%clk 0:02:16.6]}
11... Nh5 {[%clk 0:02:16.7]} 12. f4 {[%clk 0:02:15.6]} 12... b4 {[%clk
0:02:13.7]} 13. axb4 {[%clk 0:02:13.2]} 13... axb4 {[%clk 0:02:14.6]} 14. Nce2
{[%clk 0:02:05.3]} 14... Bxe2 {[%clk 0:02:12.6]} 15. Rxa8 {[%clk 0:02:03.3]}
15... Qxa8 {[%clk 0:02:13.5]} 16. Nxe2 {[%clk 0:01:58.4]} 16... Qa1+ {[%clk
0:02:12.6]} 17. Qc1 {[%clk 0:01:56]} 17... Qxc1+ {[%clk 0:02:11.2]} 18. Nxc1
{[%clk 0:01:54.2]} 18... c5 {[%clk 0:02:11.2]} 19. c3 {[%clk 0:01:40.5]} 19...
bxc3 {[%clk 0:02:08.4]} 20. bxc3 {[%clk 0:01:41.4]} 20... Rb8 {[%clk 0:02:08.3]}
21. O-O {[%clk 0:01:32.1]} 21... cxd4 {[%clk 0:02:06.3]} 22. cxd4 {[%clk
0:01:29.6]} 22... Rb4 {[%clk 0:02:00.4]} 23. Rd1 {[%clk 0:01:22.6]} 23... e6
{[%clk 0:01:49]} 24. Rd3 {[%clk 0:01:07.3]} 24... Nb6 {[%clk 0:01:45.8]} 25. Ne2
{[%clk 0:01:05.7]} 25... Nc4 {[%clk 0:01:41.9]} 26. Bf2 {[%clk 0:00:51]} 26...
d5 {[%clk 0:01:34.9]} 27. e5 {[%clk 0:00:48.5]} 27... Bf8 {[%clk 0:01:31.2]} 28.
Be1 {[%clk 0:00:44.3]} 28... Rb7 {[%clk 0:01:27.1]} 29. Rc3 {[%clk 0:00:33.5]}
29... Bb4 {[%clk 0:01:23.3]} 30. Rxc4 {[%clk 0:00:26.6]} 30... dxc4 {[%clk
0:01:21.4]} 0-1

[Event "Early-Titled-Tuesday-Blitz-May-07-2024"]
[Site "Chess.com"]
[Date "2024.05.07"]
[Round "1"]
[White "NigiriSushies"]
[Black "Zurability"]
[Result "0-1"]
[WhiteElo "2421"]
[BlackElo "2738"]
[TimeControl "180+1"]
[EndTime "8:05:33 PDT"]
[Termination "Zurability won on time"]

1. e4 {[%clk 0:02:31.1]} 1... c5 {[%clk 0:02:58]} 2. Nf3 {[%clk 0:02:19.5]} 2...
d6 {[%clk 0:02:55.5]} 3. d4 {[%clk 0:02:20]} 3... cxd4 {[%clk 0:02:56.4]} 4.
Nxd4 {[%clk 0:02:20.6]} 4... Nf6 {[%clk 0:02:57]} 5. Nc3 {[%clk 0:02:21.2]} 5...
g6 {[%clk 0:02:54.5]} 6. Be3 {[%clk 0:02:20.3]} 6... Bg7 {[%clk 0:02:53.9]} 7.
f3 {[%clk 0:02:20]} 7... a6 {[%clk 0:02:54.3]} 8. Qd2 {[%clk 0:02:19.9]} 8...
Nbd7 {[%clk 0:02:53.8]} 9. O-O-O {[%clk 0:02:18.3]} 9... b5 {[%clk 0:02:53.9]}
10. a3 {[%clk 0:02:14.8]} 10... Bb7 {[%clk 0:02:53.7]} 11. Kb1 {[%clk
0:02:14.5]} 11... Rc8 {[%clk 0:02:53.3]} 12. h4 {[%clk 0:02:15]} 12... h5 {[%clk
0:02:53.2]} 13. Bd3 {[%clk 0:02:02.6]} 13... Qc7 {[%clk 0:02:45.9]} 14. Rdg1
{[%clk 0:01:08.1]} 14... Ne5 {[%clk 0:02:43.1]} 15. Bg5 {[%clk 0:00:46.6]} 15...
Nc4 {[%clk 0:02:36]} 16. Bxc4 {[%clk 0:00:45.8]} 16... Qxc4 {[%clk 0:02:36.9]}
17. Nde2 {[%clk 0:00:34.9]} 17... Nd7 {[%clk 0:02:25.3]} 18. g4 {[%clk
0:00:27.6]} 18... b4 {[%clk 0:02:19.1]} 19. axb4 {[%clk 0:00:20.5]} 19... Qxb4
{[%clk 0:02:18.7]} 20. gxh5 {[%clk 0:00:19.6]} 20... Rxh5 {[%clk 0:02:13.4]} 21.
Rd1 {[%clk 0:00:13.8]} 21... Ne5 {[%clk 0:02:12.6]} 22. Nd5 {[%clk 0:00:09.9]}
22... Qxd2 {[%clk 0:02:05.4]} 23. Rxd2 {[%clk 0:00:07.8]} 23... Nxf3 {[%clk
0:02:05.4]} 24. Rdd1 {[%clk 0:00:07.4]} 24... Nxg5 {[%clk 0:02:01.6]} 25. hxg5
{[%clk 0:00:07.4]} 25... Rxg5 {[%clk 0:02:02.5]} 26. Nef4 {[%clk 0:00:05.1]}
26... e6 {[%clk 0:01:54.5]} 27. Nb6 {[%clk 0:00:03.5]} 27... Rc6 {[%clk
0:01:54.3]} 28. Na4 {[%clk 0:00:03.5]} 28... Rc4 {[%clk 0:01:49.3]} 29. Nb6
{[%clk 0:00:01.6]} 29... Rb4 {[%clk 0:01:49.2]} 30. Rxd6 {[%clk 0:00:01.2]}
30... Bxe4 {[%clk 0:01:43.8]} 31. Kc1 {[%clk 0:00:01.6]} 31... Bxh1 {[%clk
0:01:43.5]} 0-1

[Event "Early-Titled-Tuesday-Blitz-May-07-2024"]
[Site "Chess.com"]
[Date "2024.05.07"]
[Round "1"]
[White "MagnusCarlsen"]
[Black "Perecke"]
[Result "1-0"]
[WhiteElo "3233"]
[BlackElo "2543"]
[TimeControl "180+1"]
[EndTime "8:05:38 PDT"]
[Termination "MagnusCarlsen won by resignation"]

1. a4 {[%clk 0:02:58.5]} 1... d5 {[%clk 0:02:58.4]} 2. Ra3 {[%clk 0:02:59.4]}
2... Nf6 {[%clk 0:02:56.7]} 3. g3 {[%clk 0:02:59.1]} 3... g6 {[%clk 0:02:56.4]}
4. Bg2 {[%clk 0:02:59.1]} 4... Bg7 {[%clk 0:02:57.1]} 5. Nf3 {[%clk 0:02:59]}
5... O-O {[%clk 0:02:57.4]} 6. O-O {[%clk 0:02:59.4]} 6... Nbd7 {[%clk
0:02:57.5]} 7. b4 {[%clk 0:02:57.5]} 7... c6 {[%clk 0:02:54.6]} 8. Bb2 {[%clk
0:02:36.6]} 8... Re8 {[%clk 0:02:51.2]} 9. c4 {[%clk 0:02:36]} 9... e5 {[%clk
0:02:44.3]} 10. Qc2 {[%clk 0:02:32.2]} 10... a5 {[%clk 0:02:41.5]} 11. bxa5
{[%clk 0:02:28.2]} 11... d4 {[%clk 0:02:31.3]} 12. d3 {[%clk 0:02:26.9]} 12...
Rxa5 {[%clk 0:02:29.6]} 13. Nbd2 {[%clk 0:02:27.4]} 13... Nc5 {[%clk 0:02:26.2]}
14. Nb3 {[%clk 0:02:27.2]} 14... Nxb3 {[%clk 0:02:25.5]} 15. Qxb3 {[%clk
0:02:28.1]} 15... Nd7 {[%clk 0:02:20.8]} 16. Bc1 {[%clk 0:02:26.9]} 16... Nc5
{[%clk 0:02:18.9]} 17. Qc2 {[%clk 0:02:23.7]} 17... e4 {[%clk 0:01:44.1]} 18.
Ng5 {[%clk 0:02:20]} 18... exd3 {[%clk 0:01:36.3]} 19. exd3 {[%clk 0:02:20.9]}
19... Bf5 {[%clk 0:01:30.6]} 20. Bd2 {[%clk 0:02:18.9]} 20... Rxa4 {[%clk
0:01:25]} 21. Rxa4 {[%clk 0:02:16.7]} 21... Bxd3 {[%clk 0:01:25.1]} 22. Qa2
{[%clk 0:02:17.1]} 22... Bxf1 {[%clk 0:01:08.9]} 23. Bxf1 {[%clk 0:02:18]} 23...
Nxa4 {[%clk 0:01:08.8]} 24. Qxa4 {[%clk 0:02:18.2]} 24... Bh6 {[%clk 0:00:54.9]}
25. Nxf7 {[%clk 0:02:17]} 25... Kxf7 {[%clk 0:00:50.6]} 26. Bxh6 {[%clk
0:02:17.3]} 26... g5 {[%clk 0:00:41.3]} 27. Qc2 {[%clk 0:02:16.6]} 27... d3
{[%clk 0:00:17.9]} 28. Qxd3 {[%clk 0:02:16.2]} 28... Qxd3 {[%clk 0:00:17.7]} 29.
Bxd3 {[%clk 0:02:17.1]} 29... Kf6 {[%clk 0:00:15.8]} 30. h4 {[%clk 0:02:14.6]}
30... gxh4 {[%clk 0:00:15.6]} 31. g4 {[%clk 0:02:14.7]} 31... Re1+ {[%clk
0:00:13.1]} 32. Kg2 {[%clk 0:02:13.8]} 32... Re7 {[%clk 0:00:07.1]} 33. Kh3
{[%clk 0:02:11.8]} 33... Rd7 {[%clk 0:00:05.4]} 34. Bf5 {[%clk 0:02:11.5]} 34...
Rd1 {[%clk 0:00:04.3]} 35. c5 {[%clk 0:02:09.9]} 35... Rd5 {[%clk 0:00:03.7]}
36. Bxh7 {[%clk 0:02:07]} 36... Rxc5 {[%clk 0:00:03.3]} 37. f4 {[%clk
0:02:06.7]} 37... Rc1 {[%clk 0:00:02.2]} 38. g5+ {[%clk 0:02:06.8]} 38... Kf7
{[%clk 0:00:01.8]} 39. g6+ {[%clk 0:02:06.6]} 39... Ke7 {[%clk 0:00:01.3]} 40.
g7 {[%clk 0:02:07.5]} 40... Rg1 {[%clk 0:00:01.2]} 41. Bg5+ {[%clk 0:02:07.6]}
1-0

[Event "Early-Titled-Tuesday-Blitz-May-07-2024"]
[Site "Chess.com"]
[Date "2024.05.07"]
[Round "1"]
[White "Rud_Makarian"]
[Black "Lucky_Puncher"]
[Result "1-0"]
[WhiteElo "3054"]
[BlackElo "2532"]
[TimeControl "180+1"]
[EndTime "8:05:44 PDT"]
[Termination "Rud_Makarian won by checkmate"]

1. d4 {[%clk 0:02:58.9]} 1... Nf6 {[%clk 0:02:52.8]} 2. c4 {[%clk 0:02:58.9]}
2... g6 {[%clk 0:02:52.4]} 3. Nc3 {[%clk 0:02:58.9]} 3... Bg7 {[%clk 0:02:53.1]}
4. e4 {[%clk 0:02:59.2]} 4... d6 {[%clk 0:02:53.7]} 5. Be2 {[%clk 0:02:59.3]}
5... O-O {[%clk 0:02:54.4]} 6. Be3 {[%clk 0:02:59.7]} 6... e5 {[%clk 0:02:54.8]}
7. d5 {[%clk 0:03:00.2]} 7... Na6 {[%clk 0:02:53.8]} 8. g4 {[%clk 0:02:59]} 8...
Nc5 {[%clk 0:02:54.2]} 9. f3 {[%clk 0:02:59.4]} 9... a5 {[%clk 0:02:54.9]} 10.
h4 {[%clk 0:02:59.7]} 10... h5 {[%clk 0:02:55.5]} 11. g5 {[%clk 0:03:00.2]}
11... Ne8 {[%clk 0:02:56.2]} 12. Nh3 {[%clk 0:03:00.6]} 12... c6 {[%clk
0:02:55.9]} 13. Nf2 {[%clk 0:03:01]} 13... Nc7 {[%clk 0:02:54.9]} 14. Qd2 {[%clk
0:02:59.3]} 14... cxd5 {[%clk 0:02:52.6]} 15. cxd5 {[%clk 0:02:58.2]} 15... Bd7
{[%clk 0:02:50.7]} 16. Nd3 {[%clk 0:02:39.2]} 16... Nxd3+ {[%clk 0:02:16.3]} 17.
Bxd3 {[%clk 0:02:40.1]} 17... b5 {[%clk 0:02:16.9]} 18. Rc1 {[%clk 0:02:36.9]}
18... b4 {[%clk 0:02:15.5]} 19. Nd1 {[%clk 0:02:34.9]} 19... Nb5 {[%clk
0:02:15.4]} 20. Nf2 {[%clk 0:02:28.4]} 20... Nd4 {[%clk 0:02:14.3]} 21. Bxd4
{[%clk 0:02:28.9]} 21... exd4 {[%clk 0:02:15.2]} 22. f4 {[%clk 0:02:29.5]} 22...
f6 {[%clk 0:02:07.7]} 23. Rg1 {[%clk 0:02:08.6]} 23... fxg5 {[%clk 0:01:17.3]}
24. Rxg5 {[%clk 0:02:09.5]} 24... Be8 {[%clk 0:01:12.4]} 25. f5 {[%clk 0:02:02]}
25... Bf6 {[%clk 0:01:00.3]} 26. Rg2 {[%clk 0:01:58.2]} 26... Bxh4 {[%clk
0:00:43.2]} 27. Ke2 {[%clk 0:01:57.4]} 27... g5 {[%clk 0:00:20.7]} 28. Rh1
{[%clk 0:01:53.4]} 28... Kh7 {[%clk 0:00:19.5]} 29. Rxh4 {[%clk 0:01:50.3]}
29... gxh4 {[%clk 0:00:19.8]} 30. e5 {[%clk 0:01:51.2]} 30... Rg8 {[%clk
0:00:05.1]} 31. f6+ {[%clk 0:01:50.1]} 31... Bg6 {[%clk 0:00:05.4]} 32. Rxg6
{[%clk 0:01:49.4]} 32... Rxg6 {[%clk 0:00:06.3]} 33. Qg5 {[%clk 0:01:50.1]}
33... Qg8 {[%clk 0:00:06.2]} 34. Qxh5# {[%clk 0:01:50.1]} 1-0

[Event "Early-Titled-Tuesday-Blitz-May-07-2024"]
[Site "Chess.com"]
[Date "2024.05.07"]
[Round "1"]
[White "yobdc"]
[Black "Oleksandr_Bortnyk"]
[Result "0-1"]
[WhiteElo "2534"]
[BlackElo "3054"]
[TimeControl "180+1"]
[EndTime "8:05:49 PDT"]
[Termination "Oleksandr_Bortnyk won on time"]

1. Nf3 {[%clk 0:03:00.9]} 1... Nf6 {[%clk 0:02:58.9]} 2. g3 {[%clk 0:03:01.1]}
2... b6 {[%clk 0:02:59.4]} 3. Bg2 {[%clk 0:03:01.5]} 3... Bb7 {[%clk 0:03:00.3]}
4. O-O {[%clk 0:03:01.8]} 4... g6 {[%clk 0:03:01]} 5. d3 {[%clk 0:03:02.2]} 5...
d5 {[%clk 0:03:00.7]} 6. a4 {[%clk 0:03:00]} 6... a5 {[%clk 0:03:00.1]} 7. Nc3
{[%clk 0:02:52.2]} 7... Bg7 {[%clk 0:02:59.7]} 8. e4 {[%clk 0:02:48.6]} 8...
dxe4 {[%clk 0:02:53.4]} 9. Ng5 {[%clk 0:02:48.6]} 9... O-O {[%clk 0:02:53.6]}
10. Ngxe4 {[%clk 0:02:30.4]} 10... Nxe4 {[%clk 0:02:53.6]} 11. Nxe4 {[%clk
0:02:27.7]} 11... Ra7 {[%clk 0:02:54]} 12. Bg5 {[%clk 0:02:20.5]} 12... Bxb2
{[%clk 0:02:48.1]} 13. Rb1 {[%clk 0:02:20.5]} 13... Bg7 {[%clk 0:02:47.9]} 14.
Qd2 {[%clk 0:02:06.7]} 14... Re8 {[%clk 0:02:47.5]} 15. Rfe1 {[%clk 0:02:05]}
15... Nd7 {[%clk 0:02:46.8]} 16. h4 {[%clk 0:02:04.1]} 16... h5 {[%clk
0:02:45.8]} 17. Re2 {[%clk 0:01:40.7]} 17... Ne5 {[%clk 0:02:27.8]} 18. Rbe1
{[%clk 0:01:33.5]} 18... Qd4 {[%clk 0:02:26.9]} 19. Be3 {[%clk 0:01:26.5]} 19...
Qxa4 {[%clk 0:02:25.1]} 20. Bh6 {[%clk 0:01:26.6]} 20... Qd4 {[%clk 0:02:12.2]}
21. Bxg7 {[%clk 0:01:22.2]} 21... Kxg7 {[%clk 0:02:13.1]} 22. Ng5 {[%clk
0:00:57.6]} 22... Bxg2 {[%clk 0:01:47.7]} 23. Rxe5 {[%clk 0:00:57.6]} 23... Ba8
{[%clk 0:01:47.7]} 24. Rxe7 {[%clk 0:00:55.7]} 24... Rxe7 {[%clk 0:01:46.5]} 25.
Rxe7 {[%clk 0:00:56.6]} 25... Bd5 {[%clk 0:01:40.4]} 26. c4 {[%clk 0:00:28.4]}
26... c5 {[%clk 0:01:38.3]} 27. Re1 {[%clk 0:00:05.8]} 27... Bc6 {[%clk
0:01:21.9]} 28. Kh2 {[%clk 0:00:03.4]} 28... a4 {[%clk 0:01:21.7]} 29. Qe2
{[%clk 0:00:01.5]} 29... a3 {[%clk 0:01:21.3]} 0-1